bitfinex/quotes_ETHUSD_20251214
["timestamp","ask_amount","ask_price","bid_price","bid_amount"]
[1765695062524,10.60647618,3112.6,3112.5,0.002]
[1765695062726,7.22347618,3112.6,3112.5,0.002]
[1765695063225,10.43622436,3112.6,3112.3,0.4941]
[1765695063416,0.09628809,3112.4,3112.3,0.4941]
[1765695063595,0.39712614,3112.4,3112.3,0.4941]
[1765695063797,0.89122614,3112.4,3112.3,0.9874]
[1765695066497,4.10452086,3112.4,3112.3,0.9874]
[1765695069530,4.10452086,3112.4,3112.3,0.9894]
[1765695069725,5.64714021,3112.4,3112.3,0.9894]
[1765695090943,5.64714021,3112.4,3112.3,0.4953]
[1765695091154,5.64714021,3112.4,3112.3,0.9928]
[1765695100070,5.64714021,3112.4,3112.3,0.4953]
[1765695100369,5.64718872,3112.4,3112.3,0.4953]
[1765695101036,5.64718872,3112.4,3112.3,0.9928]
[1765695102448,5.80978872,3112.4,3112.3,0.002]
[1765695104963,6.19328872,3112.4,3112.3,0.002]
[1765695105543,0.405504,3112.3,3112.1,0.002]
[1765695105743,2.8362282,3112.2,3112.1,0.002]
[1765695105985,2.25575291,3112.2,3112.1,0.002]
[1765695106168,2.3844578,3112.2,3112.1,0.002]
[1765695107145,6.17809419,3112.2,3112.1,0.002]
[1765695111284,5.76879019,3112.2,3112.1,1.1787]
[1765695114889,5.1883149,3112.2,3112.1,1.1787]
[1765695120672,4.88708825,3112.2,3112.1,1.1787]
[1765695120878,5.18786742,3112.2,3112.1,1.1787]
[1765695121793,4.14864516,3112.2,3112.1,1.1787]
[1765695124702,4.14864516,3112.2,3112.1,1.1564]
[1765695124703,0.30077917,3112.2,3112.1,1.1564]
[1765695124902,0.80677917,3112.2,3112.1,1.1564]
[1765695125669,0.80677917,3112.2,3112.1,0.002]
[1765695125670,4.81114427,3112.2,3112.1,0.002]
[1765695125893,6.21980957,3112.2,3112.1,0.002]
[1765695126095,6.86398874,3112.2,3112.1,0.002]
[1765695126797,7.02658874,3112.2,3112.1,0.002]
[1765695129574,7.02658874,3112.2,3111.7,0.002]
[1765695129575,1.15017929,3112.1,3111.7,0.002]
[1765695129776,3.79156222,3111.8,3111.7,0.002]
[1765695129974,4.39804539,3111.8,3111.7,0.002]
[1765695130174,4.52676312,3111.8,3111.7,0.002]
[1765695130781,4.52676312,3111.8,3111.7,0.4573]
[1765695130782,4.14486312,3111.8,3111.7,0.4573]
[1765695130990,4.65186312,3111.8,3111.7,0.9325]
[1765695131575,5.06865509,3111.8,3111.7,0.9325]
[1765695132109,5.06865509,3111.8,3111.7,0.4573]
[1765695132702,5.06865509,3111.8,3111.7,0.002]
[1765695133798,5.23125509,3111.8,3111.7,0.002]
[1765695134376,5.06865509,3111.8,3111.7,0.002]
[1765695134569,5.06865509,3111.8,3111.7,0.4573]
[1765695142098,5.45435509,3111.8,3111.7,0.002]
[1765695142509,5.06865509,3111.8,3111.7,0.002]
[1765695144094,5.06865509,3111.8,3111.7,0.4573]
[1765695148609,4.15615109,3111.8,3111.7,0.4573]
[1765695148910,4.15615109,3111.8,3111.7,0.9308]
[1765695148911,4.66315109,3111.8,3111.7,0.9308]
[1765695151315,4.66266991,3111.8,3111.7,0.9308]
[1765695152013,3.73887794,3111.8,3111.7,0.9308]
[1765695152309,4.24587794,3111.8,3111.7,0.9308]
[1765695155025,3.73887794,3111.8,3111.7,0.9308]
[1765695155189,4.24587794,3111.8,3111.7,0.9308]
[1765695164334,3.73887794,3111.8,3111.7,0.9308]
[1765695164542,4.24487794,3111.8,3111.7,0.9308]
[1765695170013,4.24537505,3111.8,3111.7,0.9308]
[1765695171645,0.3007951,3111.8,3111.7,30.9308]
[1765695171939,0.001,3112.0,3111.8,30.0]
[1765695172142,0.001,3112.0,3111.9,4.82553701]
[1765695172366,0.001,3112.0,3111.9,5.29903701]
[1765695174037,0.001,3112.0,3111.9,8.51250787]
[1765695182631,0.001,3112.0,3111.9,8.51275946]
[1765695184456,0.001,3112.0,3111.9,8.51475946]
[1765695188865,0.001,3112.0,3111.9,38.51475946]
[1765695189640,0.001,3112.0,3111.9,8.51475946]
[1765695189865,0.001,3112.0,3111.9,48.51475946]
[1765695190161,0.001,3112.0,3111.9,38.51475946]
[1765695191760,0.001,3112.0,3111.9,8.51475946]
[1765695191967,0.001,3112.0,3111.9,38.51475946]
[1765695195964,0.001,3112.0,3111.9,8.51475946]
[1765695196166,0.001,3112.0,3111.9,38.51475946]
[1765695201066,0.001,3112.0,3111.9,8.51475946]
[1765695201253,0.001,3112.0,3111.9,38.51475946]
[1765695206173,0.001,3112.0,3111.9,8.51475946]
[1765695206478,0.001,3112.0,3111.9,38.51475946]
[1765695211652,0.001,3112.0,3111.9,8.51475946]
[1765695211948,0.001,3112.0,3111.9,38.51475946]
[1765695212581,0.001,3112.0,3111.9,8.51475946]
[1765695212878,0.001,3112.0,3111.9,38.51475946]
[1765695215786,0.001,3112.0,3111.9,8.51475946]
[1765695216086,0.001,3112.0,3111.9,38.51475946]
[1765695216781,0.001,3112.0,3111.9,8.51475946]
[1765695216988,0.001,3112.0,3111.9,38.51475946]
[1765695218095,0.001,3112.0,3111.9,38.51448592]
[1765695220893,0.001,3112.0,3111.9,8.51448592]
[1765695221091,0.001,3112.0,3111.9,48.51448592]
[1765695221303,0.001,3112.0,3111.9,38.51448592]
[1765695224973,0.001,3112.0,3111.9,8.51448592]
[1765695225176,0.001,3112.0,3111.9,38.51448592]
[1765695227106,0.3867,3112.0,3111.9,14.371]
[1765695227403,0.85059017,3112.0,3111.9,0.002]
[1765695227607,1.35659017,3112.0,3111.9,0.002]
[1765695229403,1.82319664,3112.0,3111.9,0.002]
[1765695233214,1.35659017,3112.0,3111.9,0.002]
[1765695233713,0.30229017,3112.0,3111.9,0.002]
[1765695233912,0.80829017,3112.0,3111.9,0.002]
[1765695234477,0.97089017,3112.0,3111.9,0.002]
[1765695234894,1.35439017,3112.0,3111.9,0.002]
[1765695235716,0.97089017,3112.0,3111.9,0.002]
[1765695242520,1.35439017,3112.0,3111.9,0.002]
[1765695247327,0.97089017,3112.0,3111.9,0.002]
[1765695248721,1.78242438,3112.0,3111.9,0.002]
[1765695248900,0.97089017,3112.0,3111.9,0.002]
[1765695257805,0.80829017,3112.0,3111.9,0.002]
[1765695258005,0.80829017,3112.0,3111.9,0.4619]
[1765695259242,0.80829017,3112.0,3111.9,0.002]
[1765695260036,0.97309017,3112.0,3111.9,0.002]
[1765695260337,1.35439017,3112.0,3111.9,0.002]
[1765695263035,1.82078489,3112.0,3111.9,0.002]
[1765695264535,0.97309017,3112.0,3111.9,0.002]
[1765695277759,0.80829017,3112.0,3111.9,0.5019]
[1765695278451,0.80829017,3112.0,3111.9,0.002]
[1765695278747,0.97089017,3112.0,3111.9,0.002]
[1765695282156,0.80829017,3112.0,3111.9,0.5019]
[1765695282362,0.80829017,3112.0,3111.9,0.9875]
[1765695283052,0.80829017,3112.0,3111.9,0.5019]
[1765695286368,0.80829017,3112.0,3111.9,0.9875]
[1765695289434,0.30229017,3112.0,3111.9,0.9875]
[1765695289634,0.80829017,3112.0,3111.9,0.9875]
[1765695292530,0.80829017,3112.0,3111.9,0.5019]
[1765695293362,0.80829017,3112.0,3111.9,0.002]
[1765695295059,0.97089017,3112.0,3111.9,0.002]
[1765695297259,0.80829017,3112.0,3111.9,0.002]
[1765695299166,0.80829017,3112.0,3111.9,0.4626]
[1765695301062,0.8083397,3112.0,3111.9,0.4626]
[1765695302476,0.8083397,3112.0,3111.9,39.10480101]
[1765695302477,0.001,3112.0,3111.9,39.10480101]
[1765695302677,0.001,3112.0,3111.9,40.03750284]
[1765695302843,0.001,3112.0,3111.9,35.69858268]
[1765695303365,0.001,3112.0,3111.9,10.03750284]
[1765695303676,0.001,3112.0,3111.9,40.03750284]
[1765695303883,0.001,3112.0,3111.9,35.69858268]
[1765695304379,0.001,3112.0,3111.9,40.03750284]
[1765695322778,0.001,3112.0,3111.9,10.03750284]
[1765695323002,0.001,3112.0,3111.9,40.03750284]
[1765695325399,0.001,3112.0,3111.9,44.37111376]
[1765695326080,0.001,3112.0,3111.9,35.69858268]
[1765695326272,0.001,3112.0,3111.9,39.57284822]
[1765695326472,0.1636,3112.0,3111.9,39.09704822]
[1765695326678,0.1636,3112.0,3111.9,0.96683653]
[1765695326977,0.1636,3112.0,3111.9,0.002]
[1765695327400,0.5491,3112.0,3111.9,3.21547086]
[1765695327601,0.5491,3112.0,3111.9,0.002]
[1765695327602,0.1636,3112.0,3111.9,0.002]
[1765695328415,0.46426971,3112.0,3111.9,0.002]
[1765695328873,0.94032311,3112.0,3111.9,0.002]
[1765695329075,1.32382311,3112.0,3111.9,0.002]
[1765695330279,4.53719071,3112.0,3111.9,0.002]
[1765695331804,1.66942311,3112.0,3111.9,0.002]
[1765695332411,1.83202311,3112.0,3111.9,0.002]
[1765695332983,5.04539071,3112.0,3111.9,0.002]
[1765695336915,1.83202311,3112.0,3111.9,0.002]
[1765695337287,5.04539071,3112.0,3111.9,0.002]
[1765695337684,5.1740811,3112.0,3111.9,0.002]
[1765695338310,5.0114811,3112.0,3111.9,0.002]
[1765695338815,1.9607135,3112.0,3111.9,0.002]
[1765695341589,1.4846601,3112.0,3111.9,0.002]
[1765695341787,4.6980277,3112.0,3111.9,0.002]
[1765695345120,4.69745255,3112.0,3111.9,0.002]
[1765695346619,1.48408495,3112.0,3111.9,0.002]
[1765695348495,0.97808495,3112.0,3111.9,0.002]
[1765695348718,1.48408495,3112.0,3111.9,0.002]
[1765695348924,2.28477836,3112.0,3111.9,0.002]
[1765695351523,5.49814596,3112.0,3111.9,0.002]
[1765695352439,2.28477836,3112.0,3111.9,0.002]
[1765695352742,1.48408495,3112.0,3111.9,0.002]
[1765695353217,0.80709456,3112.0,3111.9,0.4778]
[1765695353390,0.30109456,3112.0,3111.9,0.4778]
[1765695353595,0.80709456,3112.0,3111.9,0.4778]
[1765695353999,0.80709456,3112.0,3111.9,3.69127086]
[1765695356519,0.80709456,3112.0,3111.9,0.002]
[1765695360056,0.80709456,3112.0,3111.8,0.4655]
[1765695360263,0.30009456,3111.9,3111.8,0.4655]
[1765695361034,0.30009456,3111.9,3111.8,0.9433]
[1765695362958,0.30009456,3111.9,3111.8,0.4778]
[1765695363259,0.68579456,3111.9,3111.7,0.002]
[1765695363461,0.30169456,3111.8,3111.7,2.821]
[1765695364367,0.30169456,3111.8,3111.7,6.03467741]
[1765695365356,0.30169456,3111.8,3111.7,2.821]
[1765695368175,0.30169456,3111.8,3111.7,2.52]
[1765695368477,0.30169456,3111.8,3111.7,0.002]
[1765695377962,0.3026729,3111.8,3111.7,0.002]
[1765695391282,0.3010729,3111.8,3111.7,0.5015]
[1765695392380,0.3010729,3111.8,3111.7,3.71517741]
[1765695392984,0.3010729,3111.8,3111.7,4.19307741]
[1765695393403,0.3010729,3111.8,3111.7,0.5015]
[1765695397704,0.6867729,3111.8,3111.7,0.002]
[1765695398907,4.06294703,3111.8,3111.7,0.002]
[1765695399111,4.86099688,3111.8,3111.7,0.002]
[1765695413709,4.81869688,3111.8,3111.7,0.002]
[1765695413922,5.36699688,3111.8,3111.7,0.002]
[1765695419434,5.49569762,3111.8,3111.7,0.002]
[1765695420308,5.33309762,3111.8,3111.7,0.002]
[1765695421106,4.94739762,3111.8,3111.7,0.002]
[1765695421942,5.33089762,3111.8,3111.7,0.002]
[1765695423726,0.3010729,3111.8,3111.7,0.9471]
[1765695424108,0.3010729,3111.8,3111.7,4.16077741]
[1765695424323,0.3010729,3111.8,3111.7,8.50173939]
[1765695425037,0.001,3111.9,3111.7,8.50173939]
[1765695425336,0.001,3111.9,3111.8,0.9451]
[1765695425519,0.30160294,3111.9,3111.8,0.9451]
[1765695430247,0.001,3111.9,3111.8,0.9451]
[1765695430545,0.30148572,3111.9,3111.8,0.9451]
[1765695430749,0.001,3111.9,3111.8,0.9451]
[1765695430949,0.001,3111.9,3111.8,5.2833399]
[1765695436652,0.001,3111.9,3111.8,5.2853399]
[1765695442257,0.001,3111.9,3111.8,38.49891403]
[1765695445657,0.30147218,3111.9,3111.8,35.2853399]
[1765695447232,0.30147218,3111.9,3111.8,30.9471]
[1765695448148,0.30155003,3111.9,3111.8,30.9471]
[1765695461651,0.30155003,3111.9,3111.8,30.4693]
[1765695462765,0.30155003,3111.9,3111.8,30.9264]
[1765695463866,0.30155003,3111.9,3111.8,30.4693]
[1765695465468,0.30206994,3111.9,3111.8,30.4693]
[1765695482593,0.46466994,3111.9,3111.8,0.002]
[1765695485173,0.94796994,3111.9,3111.8,0.002]
[1765695487690,0.56446994,3111.9,3111.8,0.002]
[1765695488996,0.46466994,3111.9,3111.8,0.002]
[1765695496208,0.46469516,3111.9,3111.8,0.002]
[1765695509116,0.46467735,3111.9,3111.8,0.002]
[1765695510190,0.30207735,3111.9,3111.8,0.002]
[1765695513722,0.30207735,3111.9,3111.8,0.4586]
[1765695516625,0.30207735,3111.9,3111.8,0.9445]
[1765695519526,0.30207735,3111.9,3111.8,34.15807413]
[1765695521231,0.001,3111.9,3111.8,34.15807413]
[1765695530914,0.001,3111.9,3111.8,17.32]
[1765695531115,0.68751861,3111.9,3111.8,17.483]
[1765695532217,0.68751861,3111.9,3111.8,25.881]
[1765695533116,0.68751861,3111.9,3111.8,24.66]
[1765695534156,0.30181861,3111.9,3111.8,30.002]
[1765695534311,0.30181861,3111.9,3111.8,30.4586]
[1765695537540,0.30181861,3111.9,3111.8,30.002]
[1765695537920,0.30181861,3111.9,3111.8,33.21557413]
[1765695538120,0.30181861,3111.9,3111.8,33.67987413]
[1765695538320,0.30181861,3111.9,3111.8,4.17157413]
[1765695538522,0.30181861,3111.9,3111.8,34.17157413]
[1765695539143,0.001,3111.9,3111.8,34.17157413]
[1765695539346,0.30185719,3111.9,3111.8,34.17157413]
[1765695539538,0.30185719,3111.9,3111.8,34.47339274]
[1765695540442,0.30185719,3111.9,3111.8,4.47339274]
[1765695540631,0.30185719,3111.9,3111.8,34.47339274]
[1765695541618,0.30185719,3111.9,3111.8,38.81203762]
[1765695542064,0.001,3111.9,3111.8,38.81203762]
[1765695542351,0.001,3111.9,3111.8,39.39251291]
[1765695543349,0.001,3111.9,3111.8,39.89851291]
[1765695548560,0.001,3111.9,3111.8,9.89851291]
[1765695548743,0.001,3111.9,3111.8,39.89851291]
[1765695553751,0.001,3111.9,3111.8,9.89851291]
[1765695553961,0.001,3111.9,3111.8,39.89851291]
[1765695569079,0.001,3111.9,3111.8,9.89851291]
[1765695569270,0.001,3111.9,3111.8,39.89851291]
[1765695570070,0.001,3111.9,3111.8,9.89851291]
[1765695570278,0.001,3111.9,3111.8,39.89851291]
[1765695571380,0.001,3111.9,3111.8,39.89668992]
[1765695579389,0.001,3111.9,3111.8,9.89668992]
[1765695579691,0.001,3111.9,3111.8,39.89668992]
[1765695585591,0.001,3111.9,3111.8,9.89668992]
[1765695585797,0.001,3111.9,3111.8,39.89668992]
[1765695586595,0.001,3111.9,3111.8,9.89668992]
[1765695586780,0.001,3111.9,3111.8,39.89668992]
[1765695587298,0.001,3111.9,3111.8,39.40498992]
[1765695589696,0.001,3111.9,3111.8,9.40498992]
[1765695589899,0.001,3111.9,3111.8,39.86748992]
[1765695592995,0.001,3111.9,3111.8,39.40498992]
[1765695593802,0.001,3111.9,3111.8,9.40498992]
[1765695593994,0.001,3111.9,3111.8,39.40498992]
[1765695597908,0.001,3111.9,3111.8,39.40493009]
[1765695598204,0.001,3111.9,3111.8,39.87563009]
[1765695604709,0.2634,3111.9,3111.8,10.2982939]
[1765695605017,0.6469,3111.9,3111.8,16.2702939]
[1765695605424,0.6469,3111.9,3111.8,15.1792939]
[1765695605624,0.6469,3111.9,3111.8,14.9172939]
[1765695605803,0.6469,3111.9,3111.8,14.33681861]
[1765695606786,0.6469,3111.9,3111.8,7.55039274]
[1765695607414,0.001,3111.9,3111.8,33.51739274]
[1765695607623,0.001,3111.9,3111.8,34.00419274]
[1765695607990,0.001,3111.9,3111.8,33.51739274]
[1765695608202,0.1636,3111.9,3111.8,33.51739274]
[1765695612140,0.5471,3111.9,3111.8,33.51739274]
[1765695616806,0.1636,3111.9,3111.8,33.51739274]
[1765695624849,0.6469,3111.9,3111.8,33.51739274]
[1765695626828,0.6469,3111.9,3111.8,20.79339274]
[1765695627031,0.6469,3111.9,3111.8,19.64839274]
[1765695627746,0.6469,3111.9,3111.8,33.51739274]
[1765695629746,0.6469,3111.9,3111.8,3.51739274]
[1765695629949,0.6469,3111.9,3111.8,33.51739274]
[1765695632849,0.6469,3111.9,3111.8,3.51739274]
[1765695633055,0.6469,3111.9,3111.8,33.51739274]
[1765695633756,0.2634,3111.9,3111.8,33.51739274]
[1765695635757,0.1636,3111.9,3111.8,33.51739274]
[1765695639740,0.5471,3111.9,3111.8,33.51739274]
[1765695643080,0.5471,3111.9,3111.8,3.51739274]
[1765695643261,0.5471,3111.9,3111.8,33.51739274]
[1765695643433,0.6469,3111.9,3111.8,33.51739274]
[1765695643774,0.2634,3111.9,3111.8,33.51739274]
[1765695644168,0.001,3111.9,3111.8,33.51739274]
[1765695647166,0.001,3111.9,3111.8,33.98719274]
[1765695650771,0.001,3111.9,3111.8,33.51739274]
[1765695651644,0.1636,3111.9,3111.8,33.51739274]
[1765695652375,0.001,3111.9,3111.8,33.51739274]
[1765695652674,0.1658,3111.9,3111.8,33.51739274]
[1765695652981,0.001,3111.9,3111.8,33.98719274]
[1765695653150,0.001,3111.9,3111.8,34.43799274]
[1765695653350,0.001,3111.9,3111.8,33.98719274]
[1765695654474,0.001,3111.9,3111.8,33.51739274]
[1765695656149,0.1636,3111.9,3111.8,33.51739274]
[1765695660358,0.001,3111.9,3111.8,33.99159274]
[1765695660558,0.001,3111.9,3111.8,34.48669274]
[1765695660770,0.1636,3111.9,3111.8,33.51739274]
[1765695661250,0.001,3111.9,3111.8,33.51739274]
[1765695662582,0.001,3111.9,3111.8,3.51739274]
[1765695662787,0.1636,3111.9,3111.8,33.51739274]
[1765695664580,0.1636,3111.9,3111.8,3.51739274]
[1765695664786,0.1636,3111.9,3111.8,33.51739274]
[1765695670189,0.001,3111.9,3111.8,33.99159274]
[1765695673799,0.001,3111.9,3111.8,34.48669274]
[1765695677902,0.001,3111.9,3111.8,44.48669274]
[1765695678202,0.001,3111.9,3111.8,34.48669274]
[1765695678907,0.001,3111.9,3111.8,33.99159274]
[1765695679211,0.001,3111.9,3111.8,34.48669274]
[1765695679867,0.001,3111.9,3111.8,44.48669274]
[1765695680194,0.001,3111.9,3111.8,34.48669274]
[1765695680882,0.001,3111.9,3111.8,4.48669274]
[1765695681087,0.001,3111.9,3111.8,34.48669274]
[1765695686094,0.001,3111.9,3111.8,4.48669274]
[1765695686296,0.001,3111.9,3111.8,34.48669274]
[1765695690118,0.001,3111.9,3111.8,4.48669274]
[1765695690416,0.001,3111.9,3111.8,34.48669274]
[1765695691822,0.001,3111.9,3111.8,33.99159274]
[1765695698021,0.001,3111.9,3111.8,35.02446803]
[1765695705223,0.001,3111.9,3111.8,34.57206803]
[1765695706437,0.001,3111.9,3111.8,4.57206803]
[1765695706627,0.001,3111.9,3111.8,34.57206803]
[1765695708540,0.001,3111.9,3111.8,44.57206803]
[1765695708851,0.001,3111.9,3111.8,34.57206803]
[1765695713540,0.001,3111.9,3111.8,4.57206803]
[1765695713723,0.001,3111.9,3111.8,34.57206803]
[1765695714547,0.001,3111.9,3111.8,4.57206803]
[1765695714845,0.001,3111.9,3111.8,34.57206803]
[1765695716951,0.1636,3111.9,3111.8,34.09786803]
[1765695718149,0.001,3111.9,3111.8,34.09786803]
[1765695718641,0.38269951,3112.1,3112.0,3.2133676]
[1765695718844,0.38269951,3112.1,3112.0,33.2133676]
[1765695719158,0.54749951,3112.1,3112.0,33.2133676]
[1765695719326,0.1648,3112.1,3112.0,33.59606711]
[1765695727345,0.1658,3112.1,3112.0,33.59606711]
[1765695727750,0.5455,3112.1,3112.0,33.59606711]
[1765695728649,0.5455,3112.1,3112.0,32.17306711]
[1765695728955,0.5455,3112.1,3112.0,32.17206711]
[1765695729149,0.84669046,3112.1,3112.0,0.38269951]
[1765695729350,1.73060453,3112.1,3111.9,24.585]
[1765695729552,0.68609046,3112.0,3111.9,24.585]
[1765695729860,0.94669046,3112.0,3111.9,24.585]
[1765695735482,0.94769046,3112.0,3111.9,24.585]
[1765695742179,0.94769046,3112.0,3111.9,19.89]
[1765695742778,0.94769046,3112.0,3111.8,0.38469951]
[1765695743069,0.4865,3111.9,3111.8,7.03469951]
[1765695743249,0.4865,3111.9,3111.8,3.13769951]
[1765695750746,0.4865,3111.9,3111.8,2.75369951]
[1765695751669,0.40225083,3111.9,3111.8,2.75369951]
[1765695751869,0.78715083,3111.9,3111.8,2.75369951]
[1765695752757,0.78715083,3111.9,3111.8,2.51469951]
[1765695753277,0.78715083,3111.9,3111.8,0.38469951]
[1765695753779,4.50662169,3111.9,3111.8,0.002]
[1765695754078,6.5093641,3111.9,3111.8,0.002]
[1765695754659,3.29589324,3111.9,3111.8,0.002]
[1765695754859,6.60565219,3111.9,3111.8,0.002]
[1765695765902,6.60535305,3111.9,3111.8,0.002]
[1765695767913,2.9106941,3111.9,3111.8,0.002]
[1765695768202,1.69510252,3111.9,3111.8,0.002]
[1765695768401,2.08000252,3111.9,3111.8,0.002]
[1765695768701,5.38976147,3111.9,3111.8,0.002]
[1765695781998,9.73090109,3111.9,3111.8,0.002]
[1765695784510,9.34600109,3111.9,3111.8,0.002]
[1765695784690,11.30836508,3111.9,3111.8,0.002]
[1765695787930,5.97732546,3111.9,3111.8,0.002]
[1765695788105,5.97732546,3111.9,3111.8,0.5007]
[1765695788106,0.39663978,3111.9,3111.8,0.5007]
[1765695788289,0.80635169,3111.9,3111.8,0.9525]
[1765695790115,0.30035169,3111.9,3111.8,0.9525]
[1765695790322,0.80635169,3111.9,3111.8,0.9525]
[1765695790518,0.30035169,3111.9,3111.8,0.9525]
[1765695799462,0.30037616,3111.9,3111.8,0.9525]
[1765695811951,0.001,3112.0,3111.9,30.0]
[1765695812247,0.001,3112.0,3111.9,30.9364]
[1765695812547,0.001,3112.0,3111.9,35.27753962]
[1765695814151,0.001,3112.0,3111.9,38.49101048]
[1765695814956,0.001,3112.0,3111.9,48.49101048]
[1765695815150,0.001,3112.0,3111.9,38.49101048]
[1765695817939,0.001,3112.0,3111.9,10.9364]
[1765695818137,0.001,3112.0,3111.9,17.7954]
[1765695818339,0.001,3112.0,3111.9,13.9244]
[1765695818953,0.001,3112.0,3111.9,10.9364]
[1765695819460,0.001,3112.0,3111.9,0.9364]
[1765695819758,0.001,3112.0,3111.9,17.9484]
[1765695819931,0.001,3112.0,3111.9,13.0977]
[1765695820131,0.3859,3112.0,3111.8,13.21552825]
[1765695820561,0.001,3112.0,3111.8,13.67422825]
[1765695820739,0.001,3112.0,3111.9,0.4777]
[1765695821730,0.001,3112.0,3111.9,0.9364]
[1765695824432,0.001,3112.0,3111.9,0.9384]
[1765695833476,0.001,3112.0,3111.9,0.4797]
[1765695839450,0.001,3112.0,3111.9,4.18247086]
[1765695840053,0.001,3112.0,3111.9,38.52361048]
[1765695841380,0.3014658,3112.0,3111.9,38.52361048]
[1765695841954,0.3014658,3112.0,3111.9,34.18247086]
[1765695843388,0.001,3113.3,3112.2,0.1957]
[1765695843555,0.001,3113.3,3113.1,34.49200698]
[1765695843754,0.001,3113.3,3113.1,5.68925546]
[1765695843967,0.001,3113.3,3113.0,0.58047529]
[1765695843968,0.4805,3113.2,3113.0,0.58047529]
[1765695844214,0.977,3113.2,3113.1,0.12861343]
[1765695844505,0.001,3113.2,3113.1,30.75601343]
[1765695844701,0.001,3113.2,3113.1,36.1636957]
[1765695846075,0.001,3113.2,3113.1,35.0380209]
[1765695856797,0.001,3113.2,3113.1,5.0380209]
[1765695856996,0.001,3113.2,3113.1,35.0380209]
[1765695859596,0.001,3113.2,3113.1,34.8902209]
[1765695861796,0.001,3113.2,3113.1,34.4009209]
[1765695862000,0.001,3113.2,3113.1,44.4009209]
[1765695862201,0.001,3113.2,3113.1,34.8902209]
[1765695883255,0.001,3113.2,3113.1,4.8902209]
[1765695883429,0.001,3113.2,3113.1,34.8902209]
[1765695885132,0.001,3113.2,3113.1,35.2957249]
[1765695900998,0.001,3113.2,3113.1,34.8064249]
[1765695901207,0.9516,3113.2,3113.1,33.9213209]
[1765695901374,0.9516,3113.2,3113.1,34.4293209]
[1765695903685,0.9516,3113.2,3113.1,44.4293209]
[1765695904010,0.9516,3113.2,3113.1,38.76353482]
[1765695906013,0.9516,3113.2,3113.1,33.9213209]
[1765695906190,0.9516,3113.2,3113.1,33.34084561]
[1765695906393,0.9516,3113.2,3113.1,33.9213209]
[1765695907815,0.95031513,3113.2,3113.1,33.9213209]
[1765695908036,0.95131513,3113.2,3113.1,33.9213209]
[1765695913823,0.95131513,3113.2,3113.1,3.9213209]
[1765695914121,0.95131513,3113.2,3113.1,33.9213209]
[1765695917510,0.95131513,3113.2,3113.1,33.79270747]
[1765695917996,0.95131513,3113.2,3113.1,3.79270747]
[1765695918221,0.95131513,3113.2,3113.1,33.79270747]
[1765695924221,0.95131513,3113.2,3113.1,3.79270747]
[1765695924420,0.95131513,3113.2,3113.1,33.79270747]
[1765695937441,0.95131513,3113.2,3113.1,3.79270747]
[1765695937646,0.95131513,3113.2,3113.1,33.79270747]
[1765695943547,0.95131513,3113.2,3113.1,30.58047529]
[1765695944944,0.95131513,3113.2,3113.1,33.79270747]
[1765695946051,0.48501513,3113.2,3113.1,33.79270747]
[1765695947140,0.94301513,3113.2,3113.1,33.79270747]
[1765695947834,0.94301513,3113.2,3113.1,30.58047529]
[1765695948363,1.24409711,3113.2,3113.1,30.58047529]
[1765695948526,1.24409711,3113.2,3113.1,33.79270747]
[1765695948719,0.94301513,3113.2,3113.1,33.79270747]
[1765695948923,0.94301513,3113.2,3113.1,30.58047529]
[1765695948924,1.24409307,3113.2,3113.1,30.58047529]
[1765695949342,1.24409307,3113.2,3113.1,7.47447529]
[1765695949549,1.24409307,3113.2,3113.1,17.47447529]
[1765695949748,1.24409307,3113.2,3113.1,8.32147529]
[1765695950049,1.24409307,3113.2,3113.1,18.32147529]
[1765695951039,1.24409307,3113.2,3113.1,8.32147529]
[1765695951353,1.24409307,3113.2,3113.1,18.32147529]
[1765695951528,1.24409307,3113.2,3113.1,8.32147529]
[1765695952124,1.24409307,3113.2,3113.1,18.32147529]
[1765695952331,1.24409307,3113.2,3113.1,17.741]
[1765695952660,1.24409307,3113.2,3113.1,7.741]
[1765695952838,1.34038116,3113.2,3113.1,7.741]
[1765695953032,1.8054441,3113.2,3113.1,7.741]
[1765695955051,1.70915601,3113.2,3113.1,7.741]
[1765695955254,1.75109307,3113.2,3113.1,7.741]
[1765695955438,1.75109307,3113.2,3113.0,0.002]
[1765695955627,0.99276603,3113.1,3113.0,0.002]
[1765695957448,4.20499821,3113.1,3113.0,0.002]
[1765695957627,0.99276603,3113.1,3113.0,0.002]
[1765695957821,4.20499821,3113.1,3113.0,0.002]
[1765695958028,1.78536878,3113.1,3113.0,0.002]
[1765695960157,4.99760096,3113.1,3113.0,0.002]
[1765695978565,5.9625399,3113.1,3113.0,0.002]
[1765695978767,11.28571774,3113.1,3113.0,0.002]
[1765695983177,20.92241428,3113.1,3111.9,0.002]
[1765695983376,0.09628809,3112.0,3111.9,0.002]
[1765695983549,0.60328809,3112.0,3111.9,0.002]
[1765695984990,3.81665569,3112.0,3111.9,0.002]
[1765695987168,0.60328809,3112.0,3111.9,0.002]
[1765695987369,0.60328809,3112.0,3111.9,0.4964]
[1765695987894,0.60328809,3112.0,3111.9,0.9532]
[1765695991484,3.81665569,3112.0,3111.9,0.9532]
[1765695991685,3.81665569,3112.0,3111.9,0.4964]
[1765695992592,3.81665569,3112.0,3111.9,0.9817]
[1765695997493,3.81665569,3112.0,3111.9,0.4964]
[1765695999195,4.52926737,3112.0,3111.9,0.4964]
[1765696000294,4.52926737,3112.0,3111.9,0.002]
[1765696000500,4.98876737,3112.0,3111.9,0.002]
[1765696001796,5.28880597,3112.0,3111.9,0.002]
[1765696004877,5.75750597,3112.0,3111.9,0.002]
[1765696006677,5.75782912,3112.0,3111.9,0.002]
[1765696010612,5.28912912,3112.0,3111.9,0.002]